bitfinex-derivatives/quotes_SOLF0:USTF0_20250221
["timestamp","ask_amount","ask_price","bid_price","bid_amount"]
[1740163391823,5.8275,171.58,171.54,5.8286]
[1740163392223,16.38109852,171.58,171.54,5.8286]
[1740163392429,16.38109852,171.58,171.47,5.1305]
[1740163392430,10.55359852,171.58,171.49,10.55359852]
[1740163392724,0.04321966,171.55,171.49,10.55359852]
[1740163393025,8.54,171.63,171.51,10.55359852]
[1740163393224,10.55359852,171.59,171.51,10.55359852]
[1740163393424,5.8279,171.57,171.53,5.8289]
[1740163393627,10.59402926,171.59,171.51,10.55359852]
[1740163394017,0.04043074,171.59,171.51,10.55359852]
[1740163394224,0.04043074,171.59,171.53,10.55359852]
[1740163394418,5.8269,171.6,171.53,10.55359852]
[1740163394619,0.038865,171.58,171.53,10.55359852]
[1740163394818,0.038865,171.58,171.56,5.8279]
[1740163395729,0.038865,171.58,171.53,10.55359852]
[1740163395931,0.038865,171.58,171.55,5.8284]
[1740163397933,5.866565,171.58,171.53,5.8291]
[1740163398231,5.866565,171.58,171.51,10.55359852]
[1740163398432,5.866565,171.58,171.53,5.8289]
[1740163399131,0.038865,171.58,171.53,5.8289]
[1740163399331,10.55359852,171.57,171.49,10.55359852]
[1740163399729,0.03886444,171.55,171.49,10.55359852]
[1740163399930,0.03886444,171.55,171.51,5.8296]
[1740163400132,0.03886444,171.55,171.48,10.55359852]
[1740163401226,5.86736444,171.55,171.48,10.55359852]
[1740163402032,10.59246296,171.55,171.48,10.55359852]
[1740163402227,10.59246296,171.55,171.49,5.8302]
[1740163402429,5.8293,171.53,171.49,5.8302]
[1740163402735,10.59246296,171.55,171.48,10.55359852]
[1740163403230,5.8289,171.54,171.5,5.8299]
[1740163403632,10.59246296,171.55,171.48,10.55359852]
[1740163404028,5.8288,171.54,171.5,5.8299]
[1740163404523,0.03886444,171.55,171.52,5.8294]
[1740163404723,0.03886444,171.55,171.48,10.55359852]
[1740163404924,0.03886444,171.55,171.52,10.55359852]
[1740163405133,0.03886444,171.55,171.5,10.55359852]
[1740163406324,0.03886444,171.55,171.48,10.55359852]
[1740163406730,5.8292,171.53,171.49,5.8303]
[1740163406926,5.8292,171.53,171.48,10.55359852]
[1740163407430,5.8291,171.54,171.5,5.8299]
[1740163408725,10.55359852,171.54,171.43,59.71061192]
[1740163409028,10.55359852,171.5,171.43,57.87151192]
[1740163409334,16.38409852,171.5,171.45,5.8316]
[1740163409526,0.03970267,171.48,171.43,57.87151192]
[1740163409733,10.59330119,171.48,171.43,57.87151192]
[1740163410131,10.55359852,171.46,171.43,57.87151192]
[1740163410333,0.03970267,171.48,171.43,57.87151192]
[1740163410534,10.55359852,171.46,171.43,57.87151192]
[1740163411135,16.38529852,171.46,171.43,57.87151192]
[1740163411433,10.55359852,171.46,171.43,57.87151192]
[1740163412133,10.55359852,171.46,171.43,63.70391192]
[1740163413537,10.55359852,171.46,171.44,5.8322]
[1740163414732,16.42410119,171.48,171.44,5.8322]
[1740163416635,0.03970267,171.48,171.46,5.8315]
[1740163416937,0.03970267,171.48,171.43,57.87151192]
[1740163417337,10.59330119,171.48,171.43,57.87151192]
[1740163417939,10.55359852,171.46,171.43,57.87151192]
[1740163419142,16.42430119,171.48,171.44,5.8321]
[1740163419342,16.42430119,171.48,171.43,57.87151192]
[1740163419537,10.59330119,171.48,171.43,57.87151192]
[1740163419841,5.8312,171.47,171.43,63.70381192]
[1740163421542,10.59330119,171.48,171.43,63.70381192]
[1740163421744,0.03970267,171.48,171.45,5.8316]
[1740163422141,0.03970267,171.48,171.43,57.87151192]
[1740163422337,0.03970267,171.48,171.45,5.8316]
[1740163422949,0.03970267,171.48,171.44,10.55359852]
[1740163423640,0.03970267,171.48,171.47,5.8312]
[1740163424442,0.03970267,171.48,171.44,10.55359852]
[1740163424646,0.03970267,171.48,171.46,5.8313]
[1740163424841,0.03970267,171.48,171.44,10.55359852]
[1740163425041,0.03970267,171.48,171.47,5.8312]
[1740163425242,0.03970267,171.48,171.44,10.55359852]
[1740163425744,0.03970267,171.48,171.47,5.8312]
[1740163432346,13.99309852,171.57,171.53,5.8289]
[1740163432654,5.8284,171.56,171.53,5.8289]
[1740163433149,19.82099852,171.57,171.54,5.8286]
[1740163433344,19.82099852,171.57,171.54,5.86749393]
[1740163433551,5.8285,171.55,171.54,0.03889393]
[1740163433938,14.03439308,171.57,171.54,0.03889393]
[1740163434351,19.86229308,171.57,171.54,0.03889393]
[1740163436049,14.03439308,171.57,171.54,5.86759393]
[1740163436846,0.04129456,171.57,171.55,5.8281]
[1740163437247,0.04129456,171.57,171.54,0.03889393]
[1740163437548,10.55359852,171.55,171.54,0.03889393]
[1740163438747,5.86919456,171.57,171.54,0.03889393]
[1740163438948,16.42279308,171.57,171.54,0.03889393]
[1740163439147,10.59489308,171.57,171.54,0.03889393]
[1740163439351,5.8283,171.56,171.54,0.03889393]
[1740163439552,10.59489308,171.57,171.54,0.03889393]
[1740163441154,5.8285,171.55,171.54,0.03889393]
[1740163441353,10.59489308,171.57,171.54,0.03889393]
[1740163441947,16.38209852,171.55,171.54,0.03889393]
[1740163443253,5.8285,171.55,171.54,0.03889393]
[1740163445356,5.86929456,171.57,171.54,0.03889393]
[1740163445546,0.04129456,171.57,171.54,0.03889393]
[1740163446058,5.8283,171.56,171.54,0.03889393]
[1740163446250,0.04129456,171.57,171.54,0.03889393]
[1740163446755,5.8281,171.56,171.54,0.03889393]
[1740163447149,0.04129456,171.57,171.54,0.03889393]
[1740163447347,10.59489308,171.57,171.54,0.03889393]
[1740163447744,5.8285,171.55,171.54,0.03889393]
[1740163449158,0.04129456,171.57,171.54,0.03889393]
[1740163449556,5.8285,171.55,171.54,0.03889393]
[1740163450157,10.59489308,171.57,171.54,0.03889393]
[1740163450356,5.8282,171.56,171.54,0.03889393]
[1740163450554,10.59489308,171.57,171.54,0.03889393]
[1740163450954,5.8281,171.56,171.54,0.03889393]
[1740163451154,10.59489308,171.57,171.54,0.03889393]
[1740163451349,5.8283,171.56,171.54,0.03889393]
[1740163451756,0.04129456,171.57,171.54,0.03889393]
[1740163452562,5.86919456,171.57,171.54,0.03889393]
[1740163453761,0.04129456,171.57,171.54,0.03889393]
[1740163454162,0.04129456,171.57,171.54,5.86739393]
[1740163454361,0.04129456,171.57,171.54,0.03889393]
[1740163454960,0.04129456,171.57,171.55,5.8282]
[1740163455558,0.04129456,171.57,171.54,5.86759393]
[1740163456056,0.04129456,171.57,171.54,0.03889393]
[1740163456255,5.8284,171.56,171.54,0.03889393]
[1740163456457,0.04129456,171.57,171.54,0.03889393]
[1740163456661,5.86919456,171.57,171.54,0.03889393]
[1740163457058,0.04129456,171.57,171.54,0.03889393]
[1740163457263,0.04129456,171.57,171.54,5.86749393]
[1740163457465,0.04129456,171.57,171.54,0.03889393]
[1740163458066,0.04129456,171.57,171.55,5.8284]
[1740163458265,5.86919456,171.57,171.54,0.03889393]
[1740163458663,5.86919456,171.57,171.54,5.86759393]
[1740163459258,0.04129456,171.57,171.54,5.86759393]
[1740163460060,10.59489308,171.57,171.54,0.03889393]
[1740163460761,16.42269308,171.57,171.54,0.03889393]
[1740163461460,10.59489308,171.57,171.54,0.03889393]
[1740163462566,16.42269308,171.57,171.54,5.86749393]
[1740163462963,10.59489308,171.57,171.54,0.03889393]
[1740163463159,16.38209852,171.55,171.54,0.03889393]
[1740163465467,10.55359852,171.55,171.54,0.03889393]
[1740163465668,16.42279308,171.57,171.54,0.03889393]
[1740163465863,10.59489308,171.57,171.54,0.03889393]
[1740163466065,5.8282,171.56,171.54,0.03889393]
[1740163468365,5.8285,171.55,171.54,0.03889393]
[1740163469067,5.8282,171.56,171.54,0.03889393]
[1740163470577,0.04129456,171.57,171.54,0.03889393]
[1740163472169,0.04129456,171.57,171.55,5.8282]
[1740163474974,0.04129456,171.57,171.56,5.8281]
[1740163475370,0.04129456,171.57,171.54,0.03889393]
[1740163475570,0.04129456,171.57,171.55,5.8283]
[1740163478770,0.04129456,171.57,171.56,5.8281]
[1740163478978,0.04129456,171.57,171.54,0.03889393]
[1740163479378,0.04129456,171.57,171.56,5.8281]
[1740163480172,0.04129456,171.57,171.54,0.03889393]
[1740163480378,0.04129456,171.57,171.55,5.8282]
[1740163481479,0.04129456,171.57,171.54,5.86759393]
[1740163481875,5.86939456,171.57,171.54,0.03889393]
[1740163482078,10.55359852,171.56,171.54,0.03889393]
[1740163482579,5.8285,171.55,171.54,0.03889393]
[1740163483083,10.55359852,171.56,171.54,0.03889393]
[1740163483383,0.04129456,171.57,171.54,0.03889393]
[1740163484786,0.04129456,171.57,171.54,5.86759393]
[1740163486791,0.04129456,171.57,171.54,0.03889393]
[1740163487987,5.8282,171.56,171.54,0.03889393]
[1740163488188,10.55359852,171.56,171.54,0.03889393]
[1740163488691,16.38179852,171.56,171.54,0.03889393]
[1740163490586,5.8285,171.55,171.54,0.03889393]
[1740163491292,10.55359852,171.56,171.54,0.03889393]
[1740163491487,16.38179852,171.56,171.54,0.03889393]
[1740163492788,5.8285,171.55,171.54,0.03889393]
[1740163494485,0.99026894,171.55,171.43,68.42511044]
[1740163494690,10.55359852,171.48,171.39,44.34252985]
[1740163495693,0.03769535,171.45,171.41,5.8332]
[1740163496793,5.86979535,171.45,171.4,5.8334]
[1740163498393,5.86979535,171.45,171.4,5.8335]
[1740163498799,5.8326,171.43,171.36,10.55359852]
[1740163498996,5.8326,171.43,171.38,5.834]
[1740163499185,0.03680012,171.41,171.36,10.55359852]
[1740163499894,0.03680012,171.41,171.37,5.8345]
[1740163500798,0.03680012,171.41,171.34,10.55359852]
[1740163501295,0.03680012,171.41,171.36,5.8349]
[1740163501501,0.03680012,171.41,171.34,10.55359852]
[1740163501900,0.03680012,171.41,171.37,5.8346]
[1740163502496,5.87010012,171.41,171.37,5.8346]
[1740163502698,0.03680012,171.41,171.37,5.8346]
[1740163503198,0.03680012,171.41,171.36,5.8348]
[1740163503594,16.38739852,171.4,171.32,10.55359852]
[1740163503799,10.55359852,171.4,171.34,5.8356]
[1740163504000,12.40849852,171.4,171.31,10.55359852]
[1740163504200,5.8349,171.36,171.3,10.55359852]
[1740163504402,10.59207723,171.38,171.32,5.8362]
[1740163504792,10.59207723,171.38,171.27,1.7451]
[1740163505002,10.59207723,171.38,171.31,5.8364]
[1740163505198,10.55359852,171.36,171.28,10.55359852]
[1740163505398,10.55359852,171.34,171.19,31.94403133]
[1740163505602,10.55359852,171.34,171.28,5.8373]
[1740163505903,0.03733841,171.3,171.28,5.8373]
[1740163506305,0.03733841,171.3,171.27,5.8379]
[1740163506506,0.03733841,171.3,171.24,10.55359852]
[1740163509501,0.03733841,171.3,171.26,5.8381]
[1740163509702,0.03733841,171.3,171.24,10.55359852]
[1740163510107,0.03733841,171.3,171.26,5.8381]
[1740163510408,10.59093693,171.3,171.22,10.55359852]
[1740163511210,5.8373,171.29,171.22,10.55359852]
[1740163511813,5.8373,171.29,171.24,5.8387]
[1740163512005,10.59093693,171.3,171.24,5.8387]
[1740163512210,5.8377,171.28,171.24,5.8387]
[1740163512611,16.39129852,171.28,171.22,10.55359852]
[1740163512813,16.39129852,171.28,171.23,5.8391]
[1740163513118,5.8381,171.27,171.23,5.8391]
[1740163513304,5.87741135,171.27,171.23,5.8391]
[1740163513509,5.87741135,171.27,171.22,5.8396]
[1740163513710,5.87741135,171.27,171.2,10.55359852]
[1740163514018,0.03931135,171.27,171.23,5.8391]
[1740163514817,5.87741135,171.27,171.23,5.8391]
[1740163515112,5.87741135,171.27,171.2,10.55359852]
[1740163515510,0.03931135,171.27,171.2,10.55359852]
[1740163515716,0.03931135,171.27,171.24,10.55359852]
[1740163516516,0.03931135,171.27,171.26,5.8383]
[1740163517712,0.03931135,171.27,171.25,5.8385]
[1740163517913,0.03931135,171.27,171.17,3.2425]
[1740163518218,10.59290987,171.27,171.18,10.55359852]
[1740163518608,5.8386,171.26,171.18,10.55359852]
[1740163519010,10.59290987,171.27,171.18,10.55359852]
[1740163519411,0.03931135,171.27,171.22,10.55359852]
[1740163519619,0.03931135,171.27,171.24,10.55359852]
[1740163520215,0.03931135,171.27,171.22,10.55359852]
[1740163520413,0.03931135,171.27,171.22,5.8394]
[1740163520613,0.03931135,171.27,171.2,10.55359852]
[1740163521121,0.03931135,171.27,171.22,10.55359852]
[1740163521510,10.59290987,171.27,171.2,10.55359852]
[1740163522821,16.43110987,171.27,171.22,5.8395]
[1740163523025,5.87751135,171.27,171.2,10.55359852]
[1740163524323,0.03931135,171.27,171.2,10.55359852]
[1740163524518,5.8386,171.26,171.2,10.55359852]
[1740163525021,5.8387,171.25,171.21,5.8399]
[1740163525223,5.8387,171.25,171.2,10.55359852]
[1740163525425,10.59290987,171.27,171.2,10.55359852]
[1740163525628,10.59290987,171.27,171.2,16.39389852]
[1740163526822,5.8393,171.24,171.2,10.55359852]
[1740163527825,5.8388,171.25,171.2,16.39369852]
[1740163528123,0.03931135,171.27,171.22,10.55359852]
[1740163528526,5.8383,171.26,171.22,16.39299852]
[1740163528717,5.88287604,171.26,171.22,16.39299852]
[1740163528920,0.04457604,171.26,171.22,10.55359852]
[1740163529121,0.04457604,171.26,171.22,16.39319852]
[1740163529328,0.04457604,171.26,171.22,10.55359852]
[1740163529522,0.04457604,171.26,171.22,16.39309852]
[1740163530430,5.88297604,171.26,171.22,16.39309852]
[1740163530725,0.04457604,171.26,171.22,16.39309852]
[1740163531325,0.04457604,171.26,171.23,5.8393]
[1740163531525,0.04457604,171.26,171.22,10.55359852]
[1740163531730,0.04457604,171.26,171.24,10.55359852]
[1740163531929,0.04457604,171.26,171.25,5.8387]
[1740163533529,0.04457604,171.26,171.24,10.55359852]
[1740163534034,5.8339,171.39,171.34,5.8354]
[1740163534226,5.5337,171.42,171.35,10.55359852]
[1740163534421,0.99186993,171.41,171.37,10.55359852]
[1740163534725,3.7066,171.42,171.37,10.55359852]
[1740163535126,0.04357324,171.41,171.38,0.03898105]
[1740163535725,0.04357324,171.41,171.4,5.8336]
[1740163536126,10.55359852,171.49,171.39,10.55359852]
[1740163536329,0.99271784,171.48,171.42,16.38619852]
[1740163536532,16.38409852,171.49,171.42,16.38619852]
[1740163536736,25.04052987,171.52,171.42,5.8326]
[1740163536934,16.54052987,171.49,171.39,5.8338]
[1740163537134,8.5,171.52,171.36,16.54052987]
[1740163537336,0.04411848,171.46,171.42,0.03922014]
[1740163552848,0.04411848,171.46,171.44,16.54052987]
[1740163553048,0.99229824,171.54,171.44,16.54052987]
[1740163554349,0.03938728,171.51,171.47,0.0384917]
[1740163560356,0.03938728,171.51,171.5,5.8302]
[1740163560752,8.728e-05,171.51,171.5,5.8302]
[1740163565864,8.728e-05,171.51,171.5,22.36185665]
[1740163566764,8.728e-05,171.51,171.5,5.8302]
[1740163568058,8.728e-05,171.51,171.49,5.8304]
[1740163568565,8.728e-05,171.51,171.47,0.0384917]
[1740163568858,8.728e-05,171.51,171.5,5.8302]
[1740163571259,8.728e-05,171.51,171.47,0.0384917]
[1740163571858,8.728e-05,171.51,171.5,5.8302]
[1740163572063,8.728e-05,171.51,171.47,0.0384917]
[1740163572966,8.728e-05,171.51,171.5,5.8302]
[1740163574464,8.728e-05,171.51,171.47,16.57014835]
[1740163574770,8.728e-05,171.51,171.47,0.0384917]
[1740163575164,8.728e-05,171.51,171.5,5.8302]
[1740163575759,8.728e-05,171.51,171.5,22.36185665]
[1740163575965,3.5082,171.59,171.57,5.8277]
[1740163576161,3.5082,171.59,171.5,16.53165665]
[1740163577067,0.04462187,171.56,171.55,5.8282]
[1740163578463,0.04462187,171.56,171.55,5.8285]
[1740163580765,0.04462187,171.56,171.53,0.03836931]
[1740163581473,0.04462187,171.56,171.44,16.53165665]
[1740163581672,0.99325435,171.57,171.44,16.53165665]
[1740163581872,0.99325435,171.57,171.52,5.8293]
[1740163582166,5.8285,171.55,171.44,16.53165665]
[1740163582370,5.8285,171.55,171.51,5.8295]
[1740163582570,5.8285,171.55,171.48,0.03873875]
[1740163582770,5.86651481,171.55,171.48,0.03873875]
[1740163583869,0.03801481,171.55,171.48,0.03873875]
[1740163584069,0.03801481,171.55,171.5,16.53165665]
[1740163584871,0.03801481,171.55,171.54,5.8288]
[1740163587070,1.481e-05,171.55,171.54,5.8288]
[1740163590775,1.7008,171.65,171.54,1.7009]
[1740163590967,1.7008,171.65,171.56,16.53165665]
[1740163591778,1.8312,171.69,171.59,0.04342396]
[1740163591977,0.03997324,171.66,171.59,0.04342396]
[1740163592372,0.03997324,171.66,171.62,5.8261]
[1740163592574,5.8253,171.65,171.62,5.8261]
[1740163593781,0.03997324,171.66,171.59,0.04342396]
[1740163594282,0.03997324,171.66,171.6,5.8265]
[1740163594683,0.03997324,171.66,171.59,0.04342396]
[1740163594878,5.8263,171.62,171.59,5.87042396]
[1740163595379,0.04248475,171.62,171.59,0.04342396]
[1740163595579,16.53165665,171.61,171.52,192.0]
[1740163595783,3.68,171.6,171.49,16.53165665]
[1740163595980,3.68,171.6,171.55,5.8284]
[1740163596385,3.68,171.6,171.49,16.53165665]
[1740163596576,5.828,171.57,171.49,16.53165665]
[1740163596780,0.04361994,171.56,171.53,0.0391589]
[1740163598492,0.04361994,171.56,171.44,192.0]
[1740163598679,0.99320113,171.57,171.43,18.35435665]
[1740163599178,0.99320113,171.57,171.47,5.8311]
[1740163599483,16.53165665,171.55,171.46,5.8314]
[1740163599686,1.0310257,171.54,171.5,0.03877872]
[1740163599985,1.0310257,171.54,171.41,1.8512]
[1740163600285,5.8302,171.5,171.45,5.8317]
[1740163600481,16.53165665,171.52,171.4,16.53165665]
[1740163601083,0.04355627,171.48,171.44,0.04248926]
[1740163601787,0.04355627,171.48,171.46,5.8313]
[1740163602183,0.04355627,171.48,171.44,0.04248926]
[1740163603287,0.04355627,171.48,171.45,5.8318]
[1740163603492,0.04355627,171.48,171.44,0.04248926]
[1740163604185,16.53165665,171.58,171.52,5.8292]
[1740163604392,1.7443,171.6,171.46,16.53165665]
[1740163604583,0.99319408,171.59,171.46,16.53165665]
[1740163604985,5.8275,171.58,171.46,16.53165665]
[1740163605486,0.04289557,171.54,171.53,5.8289]
[1740163605991,0.04289557,171.54,171.52,0.04306015]
[1740163606193,0.04289557,171.54,171.53,5.8291]
[1740163609391,0.04289557,171.54,171.51,0.04143291]
[1740163609793,0.04289557,171.54,171.51,5.87123291]
[1740163610296,0.04289557,171.54,171.51,0.04143291]
[1740163611791,0.04289557,171.54,171.53,5.8291]
[1740163614399,5.8279,171.57,171.53,5.8291]
[1740163614600,5.5406,171.6,171.52,5.8294]
[1740163614897,0.99306601,171.59,171.52,5.8294]
[1740163615099,5.8278,171.57,171.53,5.8291]
[1740163615497,5.87197573,171.57,171.53,5.86814743]
[1740163615693,0.04417573,171.57,171.53,0.03904743]
[1740163616493,0.04417573,171.57,171.55,5.8282]
[1740163616900,0.04417573,171.57,171.53,0.03904743]
[1740163617806,0.04417573,171.57,171.56,5.8281]
[1740163618602,0.04417573,171.57,171.53,0.03904743]
[1740163619204,0.04417573,171.57,171.56,5.8281]
[1740163620104,0.04417573,171.57,171.55,5.8284]
[1740163620300,0.04417573,171.57,171.53,0.03904743]
[1740163620699,5.8285,171.55,171.53,0.03904743]
[1740163621101,0.04417573,171.57,171.53,0.03904743]
[1740163621300,5.87207573,171.57,171.53,5.86814743]
[1740163621606,0.04417573,171.57,171.53,0.03904743]
[1740163621805,5.8283,171.56,171.53,0.03904743]
[1740163622504,5.8282,171.56,171.53,0.03904743]
[1740163622701,0.04417573,171.57,171.53,0.03904743]
[1740163623108,0.04417573,171.57,171.53,5.86814743]
[1740163623603,0.04417573,171.57,171.53,0.03904743]
[1740163624408,0.04417573,171.57,171.56,5.8281]
[1740163629912,7.573e-05,171.57,171.56,5.8281]
[1740163630810,3.5548,171.69,171.66,5.8247]
[1740163631007,9.3788,171.69,171.6,16.53165665]
[1740163631407,3.5548,171.69,171.63,5.8254]
[1740163631607,0.99250315,171.68,171.63,5.8254]
[1740163631802,5.8248,171.66,171.57,16.53165665]
[1740163632009,5.8248,171.66,171.64,0.04330012]
[1740163632209,3.5548,171.69,171.57,16.53165665]
[1740163632512,0.03840873,171.67,171.64,5.8253]
[1740163632709,0.03840873,171.67,171.63,0.03829432]
[1740163633121,0.03840873,171.67,171.66,5.8247]
[1740163633720,5.8221,171.74,171.63,16.56995097]
[1740163633923,0.99228059,171.73,171.64,1.8187]
[1740163634122,5.8224,171.73,171.64,1.8187]
[1740163634419,5.8224,171.73,171.69,5.8235]
[1740163634618,1.6993,171.76,171.64,1.8187]
[1740163634811,5.8221,171.74,171.7,5.8231]
[1740163635011,0.99226294,171.73,171.7,5.8231]
[1740163635220,0.03839314,171.74,171.7,5.86364597]
[1740163635420,5.86049314,171.74,171.7,5.86364597]
[1740163635721,0.99222416,171.73,171.7,5.86364597]
[1740163636220,5.86049314,171.74,171.7,5.86364597]
[1740163636421,5.86049314,171.74,171.7,0.04054597]
[1740163636618,0.03839314,171.74,171.7,0.04054597]
[1740163638120,0.03839314,171.74,171.73,5.8223]
[1740163639023,0.03839314,171.74,171.72,5.8226]
[1740163639712,0.03839314,171.74,171.7,5.86384597]
[1740163639918,0.03839314,171.74,171.7,0.04054597]
[1740163640621,5.823,171.71,171.7,0.04054597]
[1740163641225,5.824,171.69,171.64,0.81917158]
[1740163641524,16.53165665,171.72,171.59,59.64312561]
[1740163641723,16.53165665,171.69,171.59,59.64312561]
[1740163641925,5.8251,171.65,171.6,5.8267]
[1740163642223,16.53165665,171.69,171.59,57.81702561]
[1740163642519,0.04443065,171.64,171.61,0.03900362]
[1740163642822,2.8546344,171.65,171.59,57.81702561]
[1740163643020,0.04088685,171.64,171.61,0.0390563]
[1740163643422,5.8258,171.63,171.61,0.0390563]
[1740163643923,0.04088685,171.64,171.61,0.0390563]
[1740163645821,5.8261,171.62,171.61,0.0390563]
[1740163646120,16.53165665,171.63,171.51,19.60105665]
[1740163646321,5.8271,171.59,171.54,5.8285]
[1740163646824,5.8267,171.61,171.51,19.60105665]
[1740163647028,13.31770371,171.71,171.51,19.60105665]
[1740163647224,0.04196737,171.58,171.54,0.04329482]
[1740163647525,0.04196737,171.58,171.51,19.60105665]
[1740163647526,0.99281109,171.65,171.51,19.60105665]
[1740163647722,0.039702,171.58,171.54,0.04319963]
[1740163647921,5.8251,171.65,171.54,16.57485628]
[1740163648126,16.53165665,171.68,171.54,16.53165665]
[1740163648325,16.53165665,171.65,171.54,16.53165665]
[1740163648826,0.99275999,171.64,171.54,16.53165665]
[1740163649022,0.03671277,171.61,171.58,5.86686253]
[1740163649726,0.03671277,171.61,171.58,0.03946253]
[1740163651423,5.86341277,171.61,171.58,0.03946253]
[1740163652126,5.8271,171.6,171.58,0.03946253]
[1740163655130,0.03671277,171.61,171.58,0.03946253]
[1740163655330,5.86321277,171.61,171.58,0.03946253]
[1740163656220,0.03671277,171.61,171.58,0.03946253]
[1740163656625,0.03671277,171.61,171.6,5.8268]
[1740163657326,0.99264969,171.7,171.58,16.57111918]
[1740163657531,5.8238,171.69,171.66,5.8245]
[1740163657828,5.4064,171.71,171.61,16.53165665]
[1740163658029,11.2295,171.71,171.68,5.8239]
[1740163658330,3.6445,171.71,171.61,16.53165665]
[1740163658628,0.04154088,171.71,171.68,0.04343367]
[1740163658931,0.04154088,171.71,171.64,0.04121798]
[1740163659129,0.04154088,171.71,171.61,16.53165665]
[1740163659431,0.04154088,171.71,171.66,0.04460339]
[1740163661431,5.8238,171.69,171.66,0.04460339]
[1740163661835,0.04154088,171.71,171.66,0.04460339]
[1740163662735,1.03384194,171.71,171.66,0.04460339]
[1740163662931,5.8239,171.69,171.66,0.04460339]
[1740163663128,0.04154088,171.71,171.66,0.04460339]
[1740163663325,1.03391339,171.71,171.66,0.04460339]
[1740163663934,1.03391339,171.71,171.66,5.86910339]
[1740163664135,1.03391339,171.71,171.66,0.04460339]
[1740163664331,5.8238,171.69,171.66,0.04460339]
[1740163665237,0.04154088,171.71,171.66,0.04460339]
[1740163665438,5.8237,171.69,171.66,5.86930339]
[1740163666538,5.8244,171.67,171.66,0.04460339]
[1740163666733,16.53165665,171.69,171.57,1.7331]
[1740163666934,3.5014,171.68,171.57,1.7331]
[1740163667638,9.3257,171.68,171.64,5.8252]
[1740163667840,3.5014,171.68,171.57,1.7331]
[1740163668137,9.3256,171.68,171.64,5.86548636]
[1740163668736,9.37037327,171.68,171.65,5.825]
[1740163669238,3.54617327,171.68,171.65,5.825]
[1740163670537,3.54617327,171.68,171.64,0.04028636]
[1740163670740,3.54617327,171.68,171.64,5.86568636]
[1740163670937,3.54617327,171.68,171.64,0.04028636]
[1740163671744,3.54617327,171.68,171.66,5.8247]
[1740163671940,0.04477327,171.68,171.64,0.04028636]
[1740163673940,0.04477327,171.68,171.67,5.8244]
[1740163674340,5.4177,171.76,171.66,16.53165665]
[1740163674540,5.4177,171.76,171.72,5.8224]
[1740163674541,6.81390033,171.75,171.72,5.8224]
[1740163674838,5.4177,171.76,171.65,1.7165]
[1740163675042,16.53165665,171.8,171.69,16.53165665]
[1740163675240,4.46212687,171.79,171.66,18.33385665]
[1740163675444,0.99202687,171.78,171.66,18.33385665]
[1740163675646,0.04291336,171.74,171.71,0.04153852]
[1740163676441,5.86501336,171.74,171.71,0.04153852]
[1740163676945,0.04291336,171.74,171.71,0.04153852]
[1740163677437,5.8224,171.73,171.71,0.04153852]
[1740163679245,5.86501336,171.74,171.71,0.04153852]
[1740163679944,0.04291336,171.74,171.71,0.04153852]
[1740163680945,0.04291336,171.74,171.72,5.8227]
[1740163681152,0.04291336,171.74,171.71,0.04153852]
[1740163682751,0.04291336,171.74,171.73,5.8223]
[1740163684044,0.99198644,171.78,171.73,16.53165665]
[1740163684245,16.53165665,171.85,171.77,5.821]
[1740163684445,0.99184171,171.84,171.73,16.53165665]
[1740163684847,0.99184171,171.84,171.77,5.8207]
[1740163685150,0.99184171,171.84,171.7,16.53165665]
[1740163685347,16.57080799,171.82,171.79,2.359e-05]
[1740163685541,5.8211,171.77,171.67,16.53165665]
[1740163685850,16.53165665,171.79,171.71,5.8228]
[1740163686052,5.8214,171.76,171.71,5.8228]
[1740163686252,1.7692,171.78,171.69,5.8236]
[1740163686454,4.53659567,171.77,171.69,5.8236]
[1740163686754,0.04286946,171.75,171.72,0.04168145]
[1740163687753,5.822,171.74,171.72,0.04168145]
[1740163688253,5.8223,171.73,171.72,0.04168145]
[1740163695155,6.81452866,171.73,171.72,0.04168145]
[1740163695950,5.8223,171.73,171.72,0.04168145]
[1740163696154,0.04286946,171.75,171.72,0.04168145]
[1740163696663,5.822,171.74,171.72,0.04168145]
[1740163697360,0.04286946,171.75,171.72,0.04168145]
[1740163697559,5.8223,171.74,171.72,0.04168145]
[1740163699064,5.8223,171.73,171.72,0.04168145]
[1740163699962,17.52385739,171.73,171.61,18.31825665]
[1740163700156,0.99220074,171.72,171.61,18.31825665]
[1740163700360,16.53165665,171.76,171.68,5.8238]
[1740163700561,0.99216239,171.75,171.68,5.8238]
[1740163700966,0.0383692,171.73,171.7,5.86691454]
[1740163701161,0.0383692,171.73,171.64,16.53165665]
[1740163701362,0.0383692,171.73,171.67,16.57488112]
[1740163701566,1.7225,171.77,171.67,16.57488112]
[1740163701862,0.03674169,171.72,171.67,16.57488112]